[Event "Hungarian Youth-ch U12 2022"]
[Site "Eger"]
[Date "2022.07.29"]
[Round "7.6"]
[White "Balazs, Szabina Zoe"]
[Black "Torok, Rita"]
[Result "1-0"]
[ECO "C55"]
[WhiteElo "1437"]
[BlackElo "1275"]
[Annotator "NA RC COMBH"]
[PlyCount "71"]
[EventDate "2022.07.21"]
[EventType "tourn"]
[EventCountry "HUN"]
[SourceTitle "playchess.com"]
[Source "ChessBase"]
[SourceQuality "1"]
[TimeControl "40/5400+30:1800+30"]

1. e4 {[%emt 0:00:37]} e5 {[%emt 0:00:46]} 2. Nf3 {[%emt 0:00:35]} Nc6 {[%emt 0:00:09]} 3. Bc4 {[%emt 0:00:34]} Nf6 {[%emt 0:00:30]} 4. d3 {[%emt 0:00:55]} Be7 {[%emt 0:02:17]} 5. c3 {[%emt 0:01:09]} d6 {[%emt 0:03:24]} 6. O-O {[%emt 0:01:00]} O-O {[%emt 0:01:02]} 7. Bb3 {[%emt 0:01:28]} Bg4 {[%emt 0:05:21]} 8. h3 {[%emt 0:02:32]} Bd7 {[%emt 0:03:53]} 9. Re1 {[%emt 0:02:05]} Re8 {[%emt 0:12:43]} 10. Nbd2 {[%emt 0:05:09]} h6 {[%emt 0:03:42]} 11. Nf1 {[%emt 0:02:07]} Na5 {[%emt 0:07:58]} 12. Bc2 {[%emt 0:01:14]} c5 {[%emt 0:05:02]} 13. Ng3 {[%emt 0:05:28]} Be6 {[%emt 0:09:04]} 14. Be3 {[%emt 0:07:09]} b6 {[%emt 0:08:20]} 15. d4 {[%emt 0:03:27]} exd4 {[%emt 0:03:00]} 16. cxd4 {[%emt 0:00:30]} cxd4 {[%emt 0:01:18]} 17. Nxd4 {[%emt 0:02:16]} Rc8 {[%emt 0:05:59]} 18. Ngf5 {[%emt 0:05:13]} Bxf5 {[%emt 0:02:11]} 19. Nxf5 {[%emt 0:00:41]} Nc4 {[%emt 0:02:11]} 20. Bd4 {[%emt 0:01:39]} Qc7 {[%emt 0:04:06]} 21. Ba4 {[%emt 0:03:13]} Red8 {[%emt 0:01:55]} 22. Rc1 {[%emt 0:01:02]} Qb7 {[%emt 0:02:00]} 23. Qe2 {[%emt 0:00:39]} Ne5 {[%emt 0:01:35]} 24. f4 {[%emt 0:02:41]} Ng6 {[%emt 0:02:18]} 25. Rxc8 {[%emt 0:00:56]} Rxc8 {[%emt 0:00:55]} 26. Bxf6 {[%emt 0:00:29]} Bxf6 {[%emt 0:00:38]} 27. Nxd6 {[%emt 0:00:37]} Nxf4 {[%emt 0:03:42]} 28. Qg4 {[%emt 0:03:17]} Qa6 {[%emt 0:04:52]} 29. Qxc8+ {[%emt 0:00:09]} Qxc8 {[%emt 0:00:33]} 30. Nxc8 {[%emt 0:00:06]} Nd3 {[%emt 0:00:32]} 31. Rf1 {[%emt 0:00:43]} Nxb2 {[%emt 0:00:38]} 32. Bb3 {[%emt 0:00:19]} Nd3 {[%emt 0:01:06]} 33. Nxa7 {[%emt 0:00:21]} Bd4+ {[%emt 0:01:09]} 34. Kh2 {[%emt 0:00:16]} Be5+ {[%emt 0:00:32]} 35. g3 {[%emt 0:00:08]} Bf6 {[%emt 0:01:08]} 36. Nc8 {[%emt 0:00:46]} 1-0

[Event "Hungarian Youth-ch U12 2022"]
[Site "Eger"]
[Date "2022.07.29"]
[Round "7.7"]
[White "Brieber, Dorottya"]
[Black "Balogh, Gerda"]
[Result "1-0"]
[ECO "C47"]
[WhiteElo "1242"]
[BlackElo "1531"]
[Annotator "NA RC COMBH"]
[PlyCount "85"]
[EventDate "2022.07.21"]
[EventType "tourn"]
[EventCountry "HUN"]
[SourceTitle "playchess.com"]
[Source "ChessBase"]
[SourceQuality "1"]
[TimeControl "40/5400+30:1800+30"]

1. e4 {[%emt 0:00:33]} e5 {[%emt 0:00:38]} 2. Nf3 {[%emt 0:00:08]} Nc6 {[%emt 0:00:06]} 3. Bc4 {[%emt 0:00:10]} Nf6 {[%emt 0:00:15]} 4. Nc3 {[%emt 0:00:15]} Nxe4 {[%emt 0:00:22]} 5. Qe2 {[%emt 0:01:06]} Nxc3 {[%emt 0:00:55]} 6. dxc3 {[%emt 0:00:36]} d6 {[%emt 0:00:17]} 7. Ng5 {[%emt 0:00:39]} d5 {[%emt 0:01:45]} 8. Bb3 {[%emt 0:01:05]} Be7 {[%emt 0:02:38]} 9. Nf3 {[%emt 0:01:10]} Bf6 {[%emt 0:00:35]} 10. Nd4 {[%emt 0:06:26]} Nxd4 {[%emt 0:09:18]} 11. cxd4 {[%emt 0:00:27]} O-O {[%emt 0:00:15]} 12. Bd2 {[%emt 0:01:22]} exd4 {[%emt 0:00:57]} 13. O-O {[%emt 0:03:59]} Re8 {[%emt 0:03:24]} 14. Qf3 {[%emt 0:00:26]} c6 {[%emt 0:00:19]} 15. Rfe1 {[%emt 0:00:41]} Be6 {[%emt 0:01:15]} 16. c3 {[%emt 0:02:48]} Qb6 {[%emt 0:05:08]} 17. Re2 {[%emt 0:02:01]} Re7 {[%emt 0:03:08]} 18. Rae1 {[%emt 0:00:36]} Rae8 {[%emt 0:00:34]} 19. Bh6 {[%emt 0:08:10]} Qd8 {[%emt 0:07:40]} 20. Bf4 {[%emt 0:02:57]} Qd7 {[%emt 0:02:59]} 21. h3 {[%emt 0:01:21]} Bf5 {[%emt 0:00:37]} 22. cxd4 {[%emt 0:07:34]} Be4 {[%emt 0:02:38]} 23. Qg3 {[%emt 0:18:28]} Bxd4 {[%emt 0:02:14]} 24. Be3 {[%emt 0:06:31]} Bxe3 {[%emt 0:08:40]} 25. Rxe3 {[%emt 0:00:55]} Re6 {[%emt 0:02:06]} 26. Qg4 {[%emt 0:04:33]} f5 {[%emt 0:04:03]} 27. Qf4 {[%emt 0:02:09]} Kf7 {[%emt 0:17:38]} 28. Rg3 {[%emt 0:14:48]} Qd6 {[%emt 0:01:01]} 29. Qh4 {[%emt 0:01:21]} Rh6 {[%emt 0:01:03]} 30. Qg5 {[%emt 0:01:14]} Qf6 {[%emt 0:00:56]} 31. Qf4 {[%emt 0:00:36]} Rh4 {[%emt 0:05:24]} 32. Qc7+ {[%emt 0:01:44]} Re7 {[%emt 0:00:12]} 33. Qa5 {[%emt 0:00:53]} a6 {[%emt 0:01:11]} 34. f3 {[%emt 0:00:52]} Qd4+ {[%emt 0:03:10]} 35. Kh2 {[%emt 0:00:41]} Qf2 {[%emt 0:00:25]} 36. fxe4 {[%emt 0:00:31]} Re6 {[%emt 0:02:26]} 37. Qc3 {[%emt 0:00:47]} fxe4 {[%emt 0:01:13]} 38. Qxg7+ {[%emt 0:01:02]} Ke8 {[%emt 0:00:33]} 39. Qg8+ {[%emt 0:00:31]} Ke7 {[%emt 0:00:34]} 40. Rg7+ {[%emt 0:00:00]} Kd6 {[%emt 0:00:00]} 41. Qd8+ {[%emt 0:01:30]} Kc5 {[%emt 0:01:06]} 42. Rc1+ {[%emt 0:00:34]} Kb5 {[%emt 0:00:15]} 43. Rxb7+ {[%emt 0:00:18]} 1-0

[Event "Hungarian Youth-ch U12 2022"]
[Site "Eger"]
[Date "2022.07.29"]
[Round "7.9"]
[White "Biro, Beata"]
[Black "Molnar, Dalma Reka"]
[Result "1-0"]
[ECO "D00"]
[WhiteElo "1551"]
[BlackElo "1521"]
[Annotator "NA RC COMBH"]
[PlyCount "151"]
[EventDate "2022.07.21"]
[EventType "tourn"]
[EventCountry "HUN"]
[SourceTitle "playchess.com"]
[Source "ChessBase"]
[SourceQuality "1"]
[TimeControl "40/5400+30:1800+30"]

1. d4 {[%emt 0:00:36]} d5 {[%emt 0:00:53]} 2. e3 {[%emt 0:00:10]} Nf6 {[%emt 0:00:47]} 3. c3 {[%emt 0:00:30]} c5 {[%emt 0:00:36]} 4. Bd3 {[%emt 0:00:38]} Nc6 {[%emt 0:00:26]} 5. f4 {[%emt 0:00:44]} g6 {[%emt 0:01:25]} 6. Nf3 {[%emt 0:00:57]} Bg7 {[%emt 0:01:35]} 7. O-O {[%emt 0:01:06]} O-O {[%emt 0:00:45]} 8. Qe1 {[%emt 0:01:33]} Qc7 {[%emt 0:07:39]} 9. Ne5 {[%emt 0:04:44]} Ne4 {[%emt 0:07:34]} 10. Nd2 {[%emt 0:02:36]} Bf5 {[%emt 0:04:13]} 11. Ndf3 {[%emt 0:05:24]} Nxe5 {[%emt 0:07:05]} 12. Nxe5 {[%emt 0:01:58]} f6 {[%emt 0:04:12]} 13. Nf3 {[%emt 0:04:28]} Ng3 {[%emt 0:05:05]} 14. Bxf5 {[%emt 0:03:04]} Nxf5 {[%emt 0:00:22]} 15. e4 {[%emt 0:00:56]} dxe4 {[%emt 0:01:27]} 16. Qxe4 {[%emt 0:00:13]} cxd4 {[%emt 0:00:52]} 17. Nxd4 {[%emt 0:00:21]} Nxd4 {[%emt 0:03:31]} 18. Qxd4 {[%emt 0:01:16]} e5 {[%emt 0:08:04]} 19. fxe5 {[%emt 0:01:24]} fxe5 {[%emt 0:02:09]} 20. Qd5+ {[%emt 0:00:21]} Kh8 {[%emt 0:01:01]} 21. Be3 {[%emt 0:02:11]} a6 {[%emt 0:02:11]} 22. Rad1 {[%emt 0:04:17]} b5 {[%emt 0:08:32]} 23. Rxf8+ {[%emt 0:00:31]} Rxf8 {[%emt 0:00:54]} 24. Qd6 {[%emt 0:02:58]} Qb7 {[%emt 0:04:49]} 25. Qd5 {[%emt 0:05:41]} Qxd5 {[%emt 0:02:21]} 26. Rxd5 {[%emt 0:00:08]} Kg8 {[%emt 0:00:50]} 27. Rd6 {[%emt 0:00:29]} Ra8 {[%emt 0:00:12]} 28. Kf2 {[%emt 0:00:50]} Kf7 {[%emt 0:01:42]} 29. Kf3 {[%emt 0:03:29]} a5 {[%emt 0:02:27]} 30. Rb6 {[%emt 0:03:08]} b4 {[%emt 0:01:13]} 31. c4 {[%emt 0:00:53]} e4+ {[%emt 0:01:42]} 32. Kxe4 {[%emt 0:00:20]} Bxb2 {[%emt 0:00:05]} 33. c5 {[%emt 0:02:17]} Bc3 {[%emt 0:01:50]} 34. Kd3 {[%emt 0:02:28]} a4 {[%emt 0:02:04]} 35. c6 {[%emt 0:01:46]} Ke7 {[%emt 0:01:40]} 36. Bc5+ {[%emt 0:00:23]} Kd8 {[%emt 0:02:09]} 37. Rb7 {[%emt 0:01:44]} h6 {[%emt 0:01:44]} 38. Bxb4 {[%emt 0:00:16]} Bxb4 {[%emt 0:00:15]} 39. Rxb4 {[%emt 0:00:10]} Ra6 {[%emt 0:00:48]} 40. h4 {[%emt 0:00:00]} Kc7 {[%emt 0:00:00]} 41. Rc4 {[%emt 0:01:05]} a3 {[%emt 0:03:25]} 42. Rc3 {[%emt 0:00:26]} g5 {[%emt 0:01:18]} 43. hxg5 {[%emt 0:00:16]} hxg5 {[%emt 0:00:07]} 44. Ke4 {[%emt 0:00:06]} Ra5 {[%emt 0:00:19]} 45. g3 {[%emt 0:01:05]} g4 {[%emt 0:04:48]} 46. Rc4 {[%emt 0:01:05]} Rg5 {[%emt 0:01:07]} 47. Kf4 {[%emt 0:00:23]} Rg8 {[%emt 0:00:51]} 48. Rc3 {[%emt 0:00:26]} Rg7 {[%emt 0:00:46]} 49. Kf5 {[%emt 0:01:21]} Rg8 {[%emt 0:00:33]} 50. Rxa3 {[%emt 0:00:06]} Kxc6 {[%emt 0:00:04]} 51. Ra4 {[%emt 0:00:16]} Kd6 {[%emt 0:01:23]} 52. Ra6+ {[%emt 0:00:23]} Ke7 {[%emt 0:01:26]} 53. a4 {[%emt 0:02:10]} Rf8+ {[%emt 0:03:35]} 54. Kxg4 {[%emt 0:00:18]} Rg8+ {[%emt 0:00:04]} 55. Kf4 {[%emt 0:00:09]} Rf8+ {[%emt 0:00:06]} 56. Ke5 {[%emt 0:00:07]} Rf1 {[%emt 0:02:26]} 57. Ra7+ {[%emt 0:02:08]} Kf8 {[%emt 0:00:10]} 58. a5 {[%emt 0:00:14]} Ra1 {[%emt 0:00:32]} 59. Kf6 {[%emt 0:00:39]} Kg8 {[%emt 0:00:31]} 60. Kg6 {[%emt 0:00:18]} Kf8 {[%emt 0:00:13]} 61. g4 {[%emt 0:00:05]} Ra4 {[%emt 0:00:37]} 62. g5 {[%emt 0:00:20]} Ra1 {[%emt 0:00:28]} 63. a6 {[%emt 0:00:06]} Ra2 {[%emt 0:01:04]} 64. Ra8+ {[%emt 0:00:08]} Ke7 {[%emt 0:00:30]} 65. a7 {[%emt 0:00:10]} Ra6+ {[%emt 0:00:26]} 66. Kh5 {[%emt 0:00:14]} Ra1 {[%emt 0:00:47]} 67. g6 {[%emt 0:00:25]} Rh1+ {[%emt 0:00:10]} 68. Kg5 {[%emt 0:00:04]} Rg1+ {[%emt 0:00:18]} 69. Kh6 {[%emt 0:00:07]} Rh1+ {[%emt 0:00:04]} 70. Kg7 {[%emt 0:00:08]} Ra1 {[%emt 0:00:39]} 71. Rf8 {[%emt 0:00:08]} Rxa7 {[%emt 0:00:27]} 72. Rf7+ {[%emt 0:00:07]} Ke8 {[%emt 0:00:12]} 73. Rxa7 {[%emt 0:00:05]} Kd8 {[%emt 0:00:05]} 74. Kh7 {[%emt 0:00:13]} Ke8 {[%emt 0:00:09]} 75. g7 {[%emt 0:00:05]} Kd8 {[%emt 0:00:03]} 76. g8=Q# {[%emt 0:00:04]} 1-0

[Event "Hungarian Youth-ch U12 2022"]
[Site "Eger"]
[Date "2022.07.30"]
[Round "8.1"]
[White "Horvath, Andras"]
[Black "Kovacs, Kristof"]
[Result "0-1"]
[ECO "C44"]
[WhiteElo "2251"]
[BlackElo "1812"]
[Annotator "TA"]
[PlyCount "56"]
[EventDate "2022.07.21"]
[EventType "tourn"]
[EventCountry "HUN"]
[SourceTitle "playchess.com"]
[Source "ChessBase"]
[SourceQuality "1"]
[TimeControl "40/5400+30:1800+30"]

{[%evp 21,56,-18,10,0,9,0,38,37,25,6,12,0,2,-11,15,13,41,44,44,0,81,64,72,8,48,0,30,-33,-27,-675,-659,-628,-615,-771,-719,-1898,-1253]} 1. e4 {[%emt 0:00:35]} e5 {[%emt 0:00:45]} 2. Nf3 {[%emt 0:00:05]} Nc6 {[%emt 0:00:11]} 3. d4 {[%emt 0:00:08]} exd4 {[%emt 0:00:52]} 4. Nxd4 {[%emt 0:00:09]} Nf6 {[%emt 0:00:10]} 5. Nxc6 {[%emt 0:00:38]} bxc6 {[%emt 0:00:14]} 6. Nc3 {[%emt 0:00:08]} Bb4 {[%emt 0:00:12]} 7. Bd3 {[%emt 0:00:11]} d5 {[%emt 0:00:06]} 8. exd5 {[%emt 0:00:36]} cxd5 {[%emt 0:00:20]} 9. O-O {[%emt 0:00:19][%cal Bh1f1,Bf1e1,Be1e3,Be3e4][%mdl 32]} O-O {[%emt 0:00:09]} 10. Bg5 {[%emt 0:01:04]} c6 {[%emt 0:00:56]} 11. a3 {[%emt 0:03:16]} Be7 {[%emt 0:01:10]} 12. Re1 {[%emt 0:03:47] C47: Scotch Four Knights and Four Knights with 4 g3.} Be6 {[%emt 0:01:41]} 13. Qd2 {[%emt 0:04:03] [#]} Nd7 $146 {[%emt 0:04:16]} ({Predecessor:} 13... c5 14. Rad1 Rb8 15. Qc1 Qb6 16. b3 Rfd8 17. Bf4 Rbc8 18. Bf1 h6 19. h3 Qa5 {½-½ (55) Kucuk,A (1129)-Ozgur,S (1530) Konya 2018}) 14. Bxe7 {[%emt 0:01:17] White is slightly better.} Qxe7 {[%emt 0:00:07]} 15. Ba6 {[%emt 0:05:06]} Nc5 {[%emt 0:01:54] Against Bb7} 16. Bd3 {[%emt 0:03:29]} Qf6 {[%emt 0:02:02]} 17. Re3 {[%emt 0:06:28]} d4 {[%emt 0:01:09]} 18. Ne4 {[%emt 0:00:26]} Nxe4 {[%emt 0:00:09]} (18... Qg6 {keeps more tension.} 19. Re2 Bd5 20. f3 Bxe4 21. Bxe4 Nxe4 22. Rxe4 c5) 19. Rxe4 {[%emt 0:00:13]} c5 {[%emt 0:00:18]} 20. b3 {[%emt 0:05:46]} Rfd8 {[%emt 0:04:09]} (20... Bd5 $11) 21. Rae1 $16 {[%emt 0:02:26]} Rac8 {[%emt 0:02:52]} 22. Ba6 {[%emt 0:05:08]} (22. h3 $16) 22... Rb8 {[%emt 0:03:17]} 23. Qa5 {[%emt 0:07:02]} (23. Qe2 $14 {might be stronger.}) 23... g6 {[%emt 0:02:34]} (23... Bf5 $5 {[%cal Rf5e4]}) 24. Qxc5 {[%emt 0:08:04]} ({Better is} 24. Re5 $11) 24... Bf5 $15 {[%emt 0:00:39][%mdl 64] [#] Discovered Attack} 25. Bc4 $2 {[%emt 0:04:51][%mdl 8192] This move loses the game for White.} Bxe4 $19 {[%emt 0:00:32] Black is clearly winning.} 26. Rxe4 {[%emt 0:00:08]} d3 $1 {[%emt 0:00:29][%cal Bd4d3,Bd3c2][%mdl 32]} 27. Re1 {[%emt 0:04:09] Prevents Qa1.} dxc2 {[%emt 0:00:22] aiming for ...Rd1.} 28. Qxa7 {[%emt 0:01:41]} Qf4 {[%emt 0:01:18] Weighted Error Value: White=0.98/Black=0.24 (precise)} 0-1

[Event "Hungarian Youth-ch U12 2022"]
[Site "Eger"]
[Date "2022.07.30"]
[Round "8.2"]
[White "Onodi, Miklos"]
[Black "Janosi, Bence"]
[Result "1-0"]
[ECO "D00"]
[WhiteElo "1901"]
[BlackElo "1428"]
[Annotator "TA"]
[PlyCount "63"]
[EventDate "2022.07.21"]
[EventType "tourn"]
[EventCountry "HUN"]
[SourceTitle "playchess.com"]
[Source "ChessBase"]
[SourceQuality "1"]
[TimeControl "40/5400+30:1800+30"]

{[%evp 9,63,25,37,25,51,49,48,47,62,62,80,0,0,0,0,7,16,27,27,27,28,29,18,25,72,73,112,107,127,144,147,100,204,204,204,206,210,233,208,216,215,210,218,213,352,345,360,351,346,335,705,443,431,408,427,320]} 1. d4 {[%emt 0:00:33]} d5 {[%emt 0:00:35]} 2. Bf4 {[%emt 0:00:04]} Nf6 {[%emt 0:00:16]} 3. e3 {[%emt 0:00:06]} Bf5 {[%emt 0:00:25]} 4. c4 {[%emt 0:00:17][%cal Bc2c4,Bc4c5][%mdl 32]} c6 {[%emt 0:00:15]} 5. Nc3 {[%emt 0:00:07]} e6 {[%emt 0:00:16]} 6. Qb3 {[%emt 0:00:23] D10: Slav Defence: 3 cxd5 (without early Nf3) and 3 Nc3.} Qb6 {[%emt 0:01:53]} 7. c5 {[%emt 0:00:45]} Qxb3 {[%emt 0:00:52]} 8. axb3 {[%emt 0:00:08] White is slightly better.} Nbd7 {[%emt 0:04:31]} 9. b4 {[%emt 0:00:47]} Nh5 {[%emt 0:08:17] [#] 9...Nh5 scores better than 9...Be7.} 10. Bg5 {[%emt 0:02:45]} (10. Bc7) (10. Bc7 $1 $16) 10... h6 $11 {[%emt 0:02:02]} 11. Bh4 {[%emt 0:00:49]} g5 {[%emt 0:02:56]} 12. Be2 {[%emt 0:02:37]} Ndf6 {[%emt 0:01:39] Prevents g4.} 13. Bg3 {[%emt 0:01:17]} Nxg3 {[%emt 0:01:07]} 14. hxg3 {[%emt 0:00:05]} Bg7 {[%emt 0:02:20]} 15. b5 {[%emt 0:01:22] [#]} Ke7 $146 {[%emt 0:01:22]} (15... Ne4 16. Nf3 Nxc3 17. bxc3 Kd7 18. O-O cxb5 19. Bxb5+ Kc7 20. Ra2 Bf6 21. Rfa1 a6) ({Predecessor:} 15... Ne4 16. Nf3 Nxc3 17. bxc3 Kd7 18. O-O cxb5 19. Bxb5+ Kc7 20. Ra2 Bf6 21. Rfa1 a6 {0-1 (45) Hadzi Manev,L (2030)-Marinskii,Y (2156) Skopje 2019}) 16. Nf3 {[%emt 0:00:39] And now bxc6 would win.} Nd7 {[%emt 0:01:44]} (16... Ne4) (16... Ne4 $11) 17. Kd2 $16 {[%emt 0:05:52]} Bg6 {[%emt 0:10:51]} 18. b4 {[%emt 0:01:04][%cal Bb2b4,Bb4b5][%mdl 32]} Rhc8 {[%emt 0:11:55]} (18... cxb5 19. Bxb5 a6) 19. bxc6 {[%emt 0:07:13]} bxc6 {[%emt 0:00:38]} 20. Ba6 {[%emt 0:00:18] White is more active.} ({White should try} 20. Ra6) 20... Rcb8 {[%emt 0:05:00]} (20... Rc7) (20... Rc7 $16) 21. b5 $18 {[%emt 0:00:54]} Kd8 {[%emt 0:09:25]} 22. Ra2 {[%emt 0:11:16]} ({And not} 22. bxc6 Rb2+ 23. Kc1 Rc2+ 24. Kd1 Nxc5 25. dxc5 Rxc3 $15) 22... Kc7 {[%emt 0:07:16]} 23. Rha1 {[%emt 0:00:59]} cxb5 {[%emt 0:02:27]} 24. Nxb5+ {[%emt 0:02:31]} Kc6 {[%emt 0:01:08]} 25. Nc3 {[%emt 0:02:53]} Kc7 {[%emt 0:06:07]} 26. Be2 {[%emt 0:01:32]} a5 {[%emt 0:04:08]} (26... Kd8 27. c6 (27. Rxa7 Rxa7 28. Rxa7 Nxc5) 27... Nb6) (26... Kd8 {keeps fighting.} 27. c6 (27. Rxa7 Rxa7 28. Rxa7 Nxc5 $11) 27... Nf6) 27. Nb5+ {[%emt 0:00:49]} (27. Rxa5 Rxa5 28. Rxa5 Rb2+ 29. Kd1 Kb8 30. Rb5+ Rxb5 31. Nxb5 f5) ({Weaker is} 27. Rxa5 Rxa5 28. Rxa5 Rb2+ 29. Kd1 Kb8 30. Rb5+ Rxb5 31. Nxb5 f5 $16) 27... Kc6 {[%emt 0:00:58]} 28. Rxa5 {[%emt 0:00:23]} Rxa5 {[%emt 0:03:54]} 29. Rxa5 {[%emt 0:00:19] Threatens to win with Ra6+. The board is on fire.} Bf8 $2 {[%emt 0:07:18]} (29... Nxc5 30. Na7+ Kd7 31. Rxc5 Rb2+ 32. Kd1 Ke8 33. Rc8+ Ke7) (29... Nxc5 30. Na7+ Kd7 31. Rxc5 Rb2+ 32. Kd1 Rb1+ 33. Rc1 Rxc1+ 34. Kxc1 f6) 30. Ra7 {[%emt 0:01:25][%csl Gb5][%cal Ra7c7]} Rc8 {[%emt 0:01:59] Prevents Rc7+.} 31. Nc3 {[%emt 0:01:07][%csl Gc3][%cal Re2b5] Pair of Knights!} Rb8 {[%emt 0:01:13] [#] Prevents Bb5+.} 32. Bb5+ $1 {[%emt 0:00:32][%mdl 512] Weighted Error Value: White=0.18 (very precise) /Black=0.21 (precise)} 1-0

[Event "Hungarian Youth-ch U12 2022"]
[Site "Eger"]
[Date "2022.07.30"]
[Round "8.3"]
[White "Juhasz, Edmond"]
[Black "Lehocz, Jozsef Jr."]
[Result "0-1"]
[ECO "B51"]
[WhiteElo "1510"]
[BlackElo "1919"]
[Annotator "TA"]
[PlyCount "138"]
[EventDate "2022.07.21"]
[EventType "tourn"]
[EventCountry "HUN"]
[SourceTitle "playchess.com"]
[Source "ChessBase"]
[SourceQuality "1"]
[TimeControl "40/5400+30:1800+30"]

{[%evp 9,138,17,40,21,47,3,8,0,0,0,0,0,0,3,13,13,14,-8,0,-14,0,0,0,0,0,-1,23,31,32,22,27,23,29,7,21,-34,-31,-49,0,-24,-7,-35,-20,-25,-27,-24,-23,-29,-16,-16,-15,-115,-124,-208,-222,-214,-157,-156,-156,-274,-262,-283,-162,-533,-526,-523,-522,-521,-520,-497,-198,-201,-204,-198,-171,-217,-164,-218,-210,-364,-279,-375,-370,-335,0,-300,-238,-264,-125,-264,-221,-225,-237,-516,-450,-467,-435,-556,-546,-475,-467,-411,-381,-367,-210,-253,-193,-144,-112,-112,-59,-85,0,-112,-112,-576,-616,-597,-555,-1462,-1439,-1286,-1197,-6645,-6613,-5189,-5591,-6095,-5941,-4594,-2417]} 1. e4 {[%emt 0:00:32]} c5 {[%emt 0:00:31]} 2. Nf3 {[%emt 0:00:06]} d6 {[%emt 0:00:04]} 3. Bb5+ {[%emt 0:00:27]} Nd7 {[%emt 0:00:09]} 4. a4 {[%emt 0:02:34]} Ngf6 {[%emt 0:02:25]} 5. Nc3 {[%emt 0:02:29]} g6 {[%emt 0:01:17]} 6. d3 {[%emt 0:01:42] B51: Sicilian: Moscow Variation (3 Bb5+) without 3...Bd7.} Bg7 {[%emt 0:00:24]} 7. Bd2 {[%emt 0:00:39]} O-O {[%emt 0:00:38] [#]} 8. O-O $146 {[%emt 0:01:49] The position is equal.} ({Predecessor:} 8. Qc1 Re8 9. Bh6 Bh8 10. h3 a6 11. Bc4 e6 12. O-O b6 13. Qf4 Qc7 14. g4 {0-1 (35) Kozelov,R (2149)-Proleiko,J (2177) Saint Louis 2019}) 8... a6 {[%emt 0:00:25]} 9. Bxd7 {[%emt 0:02:01]} Bxd7 {[%emt 0:00:12]} 10. a5 {[%emt 0:00:36]} Bc6 {[%emt 0:03:11]} 11. Re1 {[%emt 0:04:35]} b5 {[%emt 0:06:15]} 12. axb6 $1 {[%emt 0:01:44]} Qxb6 {[%emt 0:00:13]} 13. Rb1 {[%emt 0:01:15]} Qb7 {[%emt 0:05:57]} 14. Bg5 {[%emt 0:03:58]} Rfe8 {[%emt 0:04:28]} 15. Qd2 {[%emt 0:03:14]} Rad8 {[%emt 0:02:33]} (15... a5) 16. Bh6 {[%emt 0:02:20]} Bh8 {[%emt 0:00:36]} 17. Bg5 {[%emt 0:01:28]} d5 {[%emt 0:08:32][%cal Rf6e4] Hoping for ...Nxe4!} 18. Bxf6 {[%emt 0:03:36]} Bxf6 {[%emt 0:00:13]} 19. exd5 {[%emt 0:00:39]} Bxd5 {[%emt 0:01:13]} 20. Nxd5 {[%emt 0:02:06]} Rxd5 {[%emt 0:00:09]} 21. b3 {[%emt 0:01:14]} Qb4 {[%emt 0:03:35]} 22. Qxb4 {[%emt 0:03:08]} (22. Re4 Qxd2 23. Nxd2) (22. Re4 $11 Qxe4 23. dxe4 Rxd2 24. Nxd2) 22... cxb4 $15 {[%emt 0:00:13]} 23. Re4 {[%emt 0:00:19]} a5 {[%emt 0:00:58]} (23... Rc8 $15) 24. Rbe1 {[%emt 0:03:34]} Ra8 {[%emt 0:10:26]} 25. h3 {[%emt 0:05:36]} e6 {[%emt 0:01:15]} 26. Ne5 {[%emt 0:07:18]} a4 {[%emt 0:03:52]} 27. bxa4 {[%emt 0:03:57]} Rxa4 {[%emt 0:11:38]} 28. f4 {[%emt 0:04:04]} Ra2 {[%emt 0:00:42]} 29. Rxb4 {[%emt 0:20:11]} Rxc2 {[%emt 0:06:10] And now ...Bxe5 would win.} 30. Ng4 {[%emt 0:01:48]} (30. Rb8+ $11 {remains equal.} Rd8 31. Rxd8+ Bxd8 32. Re4) 30... Bc3 $17 {[%emt 0:00:06] Black is more active.} 31. Rb8+ {[%emt 0:09:46]} (31. Rc4 $17) 31... Kg7 $19 {[%emt 0:00:49]} 32. Ne3 {[%emt 0:00:21]} Bxe1 {[%emt 0:00:18]} 33. Nxc2 {[%emt 0:02:49][%mdl 4096] Endgame KRB-KRN} Bg3 {[%emt 0:01:19]} 34. Nb4 {[%emt 0:01:31]} (34. d4 $17) 34... Ra5 {[%emt 0:00:46][%cal Ra5a1]} ({And not} 34... Bxf4 35. Nxd5 Bxb8 36. Nc3 $17) 35. Kf1 {[%emt 0:00:25]} Bxf4 {[%emt 0:00:18]} (35... Ra1+ $142 36. Ke2 g5) 36. Rb7 $2 {[%emt 0:00:50] [#]} (36. Rc8 {is more resistant.}) 36... Ra1+ $1 {[%emt 0:00:08]} 37. Ke2 {[%emt 0:00:35]} Rb1 {[%emt 0:01:16]} 38. Rb6 {[%emt 0:00:50]} Rb2+ {[%emt 0:00:58]} 39. Kf3 Bc7 (39... Be5 40. Nc6 Rxb6 41. Nxe5 Rb3) 40. Rc6 {[%emt 0:00:00]} Rxb4 {[%emt 0:00:00]} 41. Rxc7 {[%emt 0:02:24] KR-KR} Kf6 42. g3 {[%emt 0:05:28]} (42. Rc2 $142) 42... Rb1 {[%emt 0:04:24]} 43. Kf2 {[%emt 0:01:55]} (43. h4 {was worth a try.}) 43... h5 {[%emt 0:00:45]} 44. h4 $2 {[%emt 0:01:54]} (44. Rc8) 44... e5 {[%emt 0:00:56]} 45. Ra7 {[%emt 0:03:46]} Rb3 {[%emt 0:00:38]} 46. Ke3 {[%emt 0:00:38]} Rb1 {[%emt 0:00:15] Prevents Ra1.} 47. Kf2 $1 {[%emt 0:00:47]} Ke6 {[%emt 0:00:15]} 48. Kf3 {[%emt 0:01:35]} f6 {[%emt 0:00:41]} (48... Rb4 $19 {is more deadly. Strongly threatening ...Rd4.} 49. Ke3 Rg4 50. Ra6+ Kf5) 49. Ke4 {[%emt 0:01:21]} (49. Ra2 $17) 49... Re1+ {[%emt 0:00:08]} 50. Kf3 {[%emt 0:00:15]} Kf5 {[%emt 0:00:11]} 51. Re7 $2 {[%emt 0:01:16]} (51. Rh7) 51... Rf1+ {[%emt 0:00:48]} 52. Ke2 {[%emt 0:02:03]} Ra1 {[%emt 0:00:32]} 53. Rg7 {[%emt 0:02:33]} Ra2+ {[%emt 0:02:13]} 54. Kf3 {[%emt 0:00:51]} Ra3 {[%emt 0:00:24]} 55. Ke2 {[%emt 0:00:26]} Ra4 {[%emt 0:00:20]} 56. Kf3 {[%emt 0:01:12]} Rg4 {[%emt 0:00:54]} (56... Rd4 $142 57. Ke3 g5 58. hxg5 fxg5) 57. Rh7 {[%emt 0:00:43]} Ke6 {[%emt 0:00:10]} 58. Rh8 {[%emt 0:00:58]} (58. Rg7 $19) 58... f5 {[%emt 0:00:28]} 59. Re8+ {[%emt 0:00:46]} Kd5 {[%emt 0:02:53]} (59... Kf6 $17 60. Rc8 f4 61. gxf4 Rxf4+ 62. Kg3 Rd4 63. Rf8+ Ke7) 60. Rd8+ $15 {[%emt 0:00:29]} Ke6 {[%emt 0:01:02]} 61. Re8+ $1 {[%emt 0:00:52]} Kf6 {[%emt 0:00:17]} 62. Kf2 $2 {[%emt 0:01:13][%mdl 8192] [#]} (62. Rc8 $17) 62... f4 $1 $19 {[%emt 0:01:06] Black is clearly winning.} 63. gxf4 {[%emt 0:01:02]} exf4 {[%emt 0:00:42]} 64. d4 {[%emt 0:00:29]} Rxh4 {[%emt 0:00:29]} 65. Kf3 {[%emt 0:01:58]} g5 {[%emt 0:00:43] ...Rh3+ is the strong threat.} 66. Kg2 {[%emt 0:01:49] Prevents Rh3.} Rg4+ {[%emt 0:00:27]} 67. Kf2 {[%emt 0:00:19]} Rg3 {[%emt 0:00:05] aiming for ...h4.} 68. Rh8 {[%emt 0:00:38]} h4 {[%emt 0:00:07]} 69. Ke2 {[%emt 0:00:37]} Re3+ {[%emt 0:00:55] Weighted Error Value: White=0.35/Black=0.36} 0-1